lending/lending_fUSD_20240703
["ID","MTS","AMOUNT","RATE_DAILY","PERIOD"]
[330950211,1719971450492,-152.71946826,0.00021772,2]
[330950212,1719971450502,-4038.3032,0.00021783,2]
[330950213,1719971450511,-627.4735,0.00021783,2]
[330950214,1719971450521,-1397.5341,0.00021783,2]
[330950215,1719971450531,-2000.0,0.00021793,2]
[330950216,1719971450540,-200.0,0.00021793,2]
[330950217,1719971450549,-350.0,0.00021796,2]
[330950218,1719971450558,-213.6153,0.000218,2]
[330950219,1719971450572,-8159.3422,0.000218,2]
[330950220,1719971450581,-16423.3486,0.000218,2]
[330950221,1719971450590,-1407.5471,0.00021802,2]
[330950222,1719971450600,-715.2974,0.00021807,2]
[330950223,1719971450611,-688.63871007,0.00021809,2]
[330950224,1719971450620,-1000.0,0.00021817,2]
[330950225,1719971450630,-500.0,0.00021817,2]
[330950226,1719971450639,-215.236,0.00021817,2]
[330950227,1719971450653,-357.08070999,0.00021817,2]
[330950228,1719971450663,-971.5095834,0.00021817,2]
[330950229,1719971450672,-935.07,0.00021826,2]
[330950230,1719971450682,-152.71946826,0.00021837,2]
[330950231,1719971450691,-150.0,0.00021841,4]
[330950232,1719971450700,-150.0,0.00021841,4]
[330950233,1719971450709,-608.71384337,0.0002185,2]
[330950234,1719971450719,-5800.0,0.00021858,2]
[330950235,1719971450729,-259.8,0.00021858,2]
[330950236,1719971450739,-166.66666666,0.00021863,2]
[330950237,1719971450748,-5800.0,0.00021866,2]
[330950238,1719971450757,-270.0,0.00021871,2]
[330950239,1719971450767,-5800.0,0.00021875,2]
[330950240,1719971450776,-2867.99063496,0.00021881,4]
[330950241,1719971450786,-221.13782654,0.00021883,2]
[330950242,1719971450795,-5800.0,0.00021883,2]
[330950243,1719971450805,-796.694807,0.00021883,2]
[330950244,1719971450815,-1169.852173,0.00021883,2]
[330950245,1719971450824,-1175.028323,0.00021883,2]
[330950246,1719971450834,-1008.901989,0.00021883,2]
[330950247,1719971450843,-3797.378985,0.00021883,2]
[330950248,1719971450853,-157.672577,0.00021883,2]
[330950249,1719971450862,-185.38697,0.00021883,2]
[330950250,1719971450871,-180.882048,0.00021883,2]
[330950251,1719971450881,-4035.607957,0.00021883,2]
[330950252,1719971450891,-283.48764,0.00021883,2]
[330950253,1719971450901,-378.414186,0.00021883,2]
[330950254,1719971450910,-5696.068477,0.00021883,2]
[330950255,1719971450920,-154.78390332,0.00021889,2]
[330950256,1719971450929,-500.0,0.00021891,2]
[330950257,1719971450938,-5800.0,0.00021892,2]
[330950258,1719971450948,-365.78699378,0.00021894,2]
[330950259,1719971450957,-500.0,0.00021894,2]
[330950260,1719971450967,-200.0,0.000219,7]
[330950261,1719971450977,-8165.59343002,0.000219,2]
[330950262,1719971450986,-500.0,0.000219,2]
[330950263,1719971450996,-500.0,0.000219,2]
[330950264,1719971451006,-5800.0,0.000219,2]
[330950265,1719971451015,-368.73762682,0.000219,2]
[330950266,1719971451025,-2198.04749016,0.000219,2]
[330950267,1719971451035,-151.0,0.000219,2]
[330950268,1719971451045,-151.0,0.000219,2]
[330950269,1719971451055,-151.0,0.000219,2]
[330950270,1719971451065,-289.725,0.000219,2]
[330950271,1719971451075,-151.0,0.000219,2]
[330950272,1719971451085,-926.652199,0.000219,2]
[330950273,1719971451095,-926.652199,0.000219,2]
[330950274,1719971451104,-151.0,0.000219,2]
[330950275,1719971451113,-286.553711,0.000219,2]
[330950276,1719971451123,-151.0,0.000219,2]
[330950277,1719971451133,-151.147051,0.000219,2]
[330950278,1719971451143,-286.553711,0.000219,2]
[330950279,1719971451152,-151.0,0.000219,2]
[330950280,1719971451162,-151.147051,0.000219,2]
[330950281,1719971451171,-2256.128756,0.000219,2]
[330950282,1719971451181,-2256.128756,0.000219,2]
[330950283,1719971451191,-151.0,0.000219,2]
[330950284,1719971451200,-151.0,0.000219,2]
[330950285,1719971451210,-350.60099,0.000219,2]
[330950286,1719971451220,-151.528411,0.000219,2]
[330950287,1719971451230,-350.60099,0.000219,2]
[330950288,1719971451240,-1260.695643,0.00021901,2]
[330950289,1719971451250,-1260.695643,0.00021901,2]
[330950290,1719971451259,-151.0,0.00021901,2]
[330950291,1719971451269,-357.6621,0.00021901,2]
[330950292,1719971451280,-1234.889065,0.00021901,2]
[330950293,1719971451289,-165.914141,0.00021901,2]
[330950294,1719971451298,-1234.889065,0.00021901,2]
[330950295,1719971451308,-151.0,0.00021901,2]
[330950296,1719971451317,-357.6621,0.00021901,2]
[330950297,1719971451327,-165.914141,0.00021901,2]
[330950298,1719971451336,-151.0,0.00021901,2]
[330950299,1719971451346,-674.877562,0.00021901,2]
[330950300,1719971451359,-151.0,0.00021901,2]
[330950301,1719971451369,-674.877562,0.00021901,2]
[330950302,1719971451379,-151.0,0.00021901,2]
[330950303,1719971451388,-151.0,0.00021901,2]
[330950304,1719971451398,-151.0,0.00021901,2]
[330950305,1719971451407,-151.0,0.00021902,2]
[330950306,1719971451417,-151.0,0.00021902,2]
[330950307,1719971451426,-151.0,0.00021902,2]
[330950308,1719971451436,-151.0,0.00021902,2]
[330950309,1719971451445,-151.0,0.00021902,2]
[330950310,1719971451454,-151.0,0.00021902,2]
[330950311,1719971451464,-151.0,0.00021902,2]
[330950312,1719971451473,-151.791728,0.00021902,2]
[330950313,1719971451483,-151.0,0.00021902,2]
[330950314,1719971451492,-151.0,0.00021902,2]
[330950315,1719971451502,-151.0,0.00021902,2]
[330950316,1719971451511,-151.0,0.00021902,2]
[330950317,1719971451521,-151.0,0.00021902,2]
[330950318,1719971451532,-151.0,0.00021902,2]
[330950319,1719971451541,-5481.7801691,0.00021902,2]
[330950320,1719971451551,-4209.6069356,0.00021902,2]
[330950321,1719971451562,-151.0,0.00021902,2]
[330950322,1719971451574,-151.0,0.00021902,2]
[330950323,1719971451583,-151.0,0.00021902,2]
[330950324,1719971451592,-151.0,0.00021902,2]
[330950325,1719971451602,-151.0,0.00021902,2]
[330950326,1719971451612,-158.506348,0.00021902,2]
[330950327,1719971451622,-158.506348,0.00021902,2]
[330950328,1719971451631,-151.0,0.00021902,2]
[330950329,1719971451641,-238.559462,0.00021902,2]
[330950330,1719971451650,-151.0,0.00021902,2]
[330950331,1719971451660,-151.0,0.00021902,2]
[330950332,1719971451669,-238.559462,0.00021902,2]
[330950333,1719971451679,-151.0,0.00021902,2]
[330950334,1719971451688,-1520.891042,0.00021902,2]
[330950335,1719971451698,-1520.891042,0.00021902,2]
[330950336,1719971451708,-151.0,0.00021902,2]
[330950337,1719971451718,-151.0,0.00021902,2]
[330950338,1719971451728,-151.0,0.00021902,2]
[330950339,1719971451738,-151.0,0.00021902,2]
[330950340,1719971451750,-151.0,0.00021902,2]
[330950341,1719971451760,-151.0,0.00021902,2]
[330950342,1719971451769,-151.0,0.00021902,2]
[330950343,1719971451780,-525.7806055,0.00021902,2]
[330950344,1719971451789,-525.7806055,0.00021902,2]
[330950345,1719971451799,-5656.9734048,0.00021902,2]
[330950346,1719971451810,-4344.1425495,0.00021902,2]
[330950347,1719971451821,-27506.7037253,0.00021902,2]
[330950348,1719971451832,-21121.2701564,0.00021902,2]
[330950349,1719971451842,-431.722894,0.00021902,2]
[330950350,1719971451852,-431.722894,0.00021902,2]
[330950351,1719971451862,-462.079713,0.00021902,2]
[330950352,1719971451871,-462.079713,0.00021902,2]
[330950353,1719971451881,-2244.9895606,0.00021902,2]
[330950354,1719971451891,-1723.8354505,0.00021902,2]
[330950355,1719971451900,-151.0,0.00021902,2]
[330950356,1719971451910,-859.771806,0.00021902,2]
[330950357,1719971451919,-859.771806,0.00021902,2]
[330950358,1719971451929,-151.0,0.00021902,2]
[330950359,1719971451939,-151.0,0.00021902,2]
[330950360,1719971451948,-5923.2378362,0.00021902,2]
[330950361,1719971451957,-4922.7052474,0.00021902,2]
[330950362,1719971451967,-151.0,0.00021902,2]
[330950363,1719971451976,-151.0,0.00021902,2]
[330950364,1719971451985,-151.0,0.00021902,2]
[330950365,1719971451995,-151.0,0.00021902,2]
[330950366,1719971452004,-151.0,0.00021902,2]
[330950367,1719971452014,-151.0,0.00021902,2]
[330950368,1719971452023,-500.0,0.00021903,2]
[330950369,1719971452033,-500.0,0.00021912,2]
[330950370,1719971452043,-2000.0,0.00021916,2]
[330950371,1719971452053,-151.0,0.00021916,2]
[330950372,1719971452062,-151.0,0.00021916,2]
[330950373,1719971452072,-221.13782654,0.00021916,2]
[330950374,1719971452082,-489.0,0.00021917,4]
[330950375,1719971452091,-709.85,0.00021917,4]
[330950376,1719971452100,-709.85,0.00021917,4]
[330950377,1719971452110,-709.85,0.00021917,4]
[330950378,1719971452119,-709.85,0.00021917,4]
[330950379,1719971452128,-709.85,0.00021917,4]
[330950380,1719971452137,-709.85,0.00021917,4]
[330950381,1719971452147,-709.85,0.00021917,4]
[330950382,1719971452156,-709.85,0.00021917,4]
[330950383,1719971452165,-709.85,0.00021917,4]
[330950384,1719971452175,-709.85,0.00021917,4]
[330950385,1719971452185,-709.85,0.00021917,4]
[330950386,1719971452194,-709.85,0.00021917,4]
[330950387,1719971452203,-709.85,0.00021917,4]
[330950388,1719971452213,-709.85,0.00021917,4]
[330950389,1719971452222,-709.85,0.00021917,4]
[330950390,1719971452232,-709.85,0.00021917,4]
[330950391,1719971452241,-709.85,0.00021917,4]
[330950392,1719971452251,-709.85,0.00021917,4]
[330950393,1719971452261,-709.85,0.00021917,4]
[330950394,1719971452270,-709.85,0.00021917,4]
[330950395,1719971452281,-709.85,0.00021917,4]
[330950396,1719971452290,-709.85,0.00021917,4]
[330950397,1719971452300,-709.85,0.00021917,4]
[330950398,1719971452314,-709.86654761,0.00021917,4]
[330950399,1719971452324,-1173.71,0.00021917,4]
[330950400,1719971452334,-1173.71,0.00021917,4]
[330950401,1719971452344,-1173.71,0.00021917,4]
[330950402,1719971452354,-1173.71,0.00021917,4]
[330950403,1719971452365,-1173.71,0.00021917,4]
[330950404,1719971452376,-1173.71,0.00021917,4]
[330950405,1719971452385,-1173.71,0.00021917,4]
[330950406,1719971452395,-1173.71,0.00021917,4]
[330950407,1719971452405,-1173.71,0.00021917,4]
[330950408,1719971452414,-1173.71,0.00021917,4]
[330950409,1719971452424,-1173.71,0.00021917,4]
[330950410,1719971452435,-1173.71,0.00021917,4]
[330950411,1719971452444,-1173.71,0.00021917,4]
[330950412,1719971452455,-1173.71,0.00021917,4]
[330950413,1719971452467,-1173.71,0.00021917,4]
[330950414,1719971452478,-1173.71,0.00021917,4]
[330950415,1719971452488,-1173.71,0.00021917,4]
[330950416,1719971452499,-1173.71,0.00021917,4]
[330950417,1719971452509,-1173.71,0.00021917,4]
[330950418,1719971452521,-1173.71,0.00021917,4]
[330950419,1719971452532,-1173.71,0.00021917,4]
[330950420,1719971452542,-1173.71,0.00021917,4]
[330950421,1719971452551,-1173.71,0.00021917,4]
[330950422,1719971452562,-1173.84234237,0.00021917,4]
[330950423,1719971452574,-500.0,0.00021917,4]
[330950424,1719971452584,-501.52474493,0.00021917,4]
[330950425,1719971452594,-693.49,0.00021917,4]
[330950426,1719971452604,-693.49,0.00021917,4]
[330950427,1719971452614,-693.49,0.00021917,4]
[330950428,1719971452624,-693.49,0.00021917,4]
[330950429,1719971452634,-693.49,0.00021917,4]
[330950430,1719971452643,-693.49,0.00021917,4]
[330950431,1719971452656,-693.49,0.00021917,4]
[330950432,1719971452666,-500.0,0.00021917,4]
[330950433,1719971452675,-693.49,0.00021917,4]
[330950434,1719971452685,-500.0,0.00021917,4]
[330950435,1719971452694,-500.0,0.00021917,4]
[330950436,1719971452704,-693.49,0.00021917,4]
[330950437,1719971452713,-269.73396755,0.00021917,4]
[330950438,1719971452723,-693.49,0.00021917,4]
[330950439,1719971452733,-693.49,0.00021917,4]
[330950440,1719971452742,-693.49,0.00021917,4]
[330950441,1719971452752,-693.49,0.00021917,4]
[330950442,1719971452761,-693.49,0.00021917,4]
[330950443,1719971452771,-693.49,0.00021917,4]
[330950444,1719971452783,-693.49,0.00021917,4]
[330950445,1719971452792,-693.49,0.00021917,4]
[330950446,1719971452802,-693.49,0.00021917,4]
[330950447,1719971452812,-693.49,0.00021917,4]
[330950448,1719971452822,-693.49,0.00021917,4]
[330950449,1719971453011,-693.49,0.00021917,4]
[330950450,1719971453021,-693.49,0.00021917,4]
[330950451,1719971453031,-693.49,0.00021917,4]
[330950452,1719971453040,-693.58418731,0.00021917,4]
[330950453,1719971453050,-501.97381526,0.00021917,4]
[330950454,1719971453059,-500.0,0.00021917,4]
[330950455,1719971453069,-500.0,0.00021917,4]
[330950456,1719971453079,-500.0,0.00021917,4]
[330950457,1719971453088,-500.0,0.00021917,4]
[330950458,1719971453098,-500.0,0.00021917,4]
[330950459,1719971453108,-500.0,0.00021917,4]
[330950460,1719971453118,-500.0,0.00021917,4]
[330950461,1719971453128,-500.0,0.00021917,4]
[330950462,1719971453138,-500.0,0.00021917,4]
[330950463,1719971453147,-500.0,0.00021917,4]
[330950464,1719971453157,-500.0,0.00021917,4]
[330950465,1719971453167,-500.0,0.00021917,4]
[330950466,1719971453176,-500.0,0.00021917,4]
[330950467,1719971453186,-500.0,0.00021917,4]
[330950468,1719971453195,-500.0,0.00021917,4]
[330950469,1719971453205,-386.16853591,0.00021917,4]
[330950470,1719971453215,-457.79812614,0.00021917,4]
[330950471,1719971453225,-502.35834048,0.00021917,4]
[330950472,1719971453234,-646.06504789,0.00021917,4]
[330950473,1719971453244,-500.0,0.00021917,4]
[330950474,1719971453253,-500.0,0.00021917,4]
[330950475,1719971453263,-500.0,0.00021917,4]
[330950476,1719971453272,-502.10125621,0.00021917,4]
[330950477,1719971453283,-500.0,0.00021917,4]
[330950478,1719971453293,-500.0,0.00021917,4]
[330950479,1719971453302,-500.0,0.00021917,4]
[330950480,1719971453312,-500.0,0.00021917,4]
[330950481,1719971453321,-500.0,0.00021917,4]
[330950482,1719971453331,-502.29790315,0.00021917,4]
[330950483,1719971453341,-500.0,0.00021917,4]
[330950484,1719971453352,-500.0,0.00021917,4]
[330950485,1719971453362,-500.0,0.00021917,4]
[330950486,1719971453373,-500.0,0.00021917,4]
[330950487,1719971453382,-500.0,0.00021917,4]
[330950488,1719971453392,-500.0,0.00021917,4]
[330950489,1719971453401,-501.91561177,0.00021917,4]
[330950490,1719971453411,-500.0,0.00021917,4]
[330950491,1719971453420,-500.0,0.00021917,4]
[330950492,1719971453430,-500.0,0.00021917,4]
[330950493,1719971453439,-501.2732385,0.00021917,4]
[330950494,1719971453448,-500.0,0.00021917,4]
[330950495,1719971453458,-500.0,0.00021917,4]
[330950496,1719971453467,-507.87671436,0.00021917,4]
[330950497,1719971453477,-617.46357129,0.00021917,4]
[330950498,1719971453487,-503.06410797,0.00021917,4]
[330950499,1719971453496,-1447.73,0.00021917,4]
[330950500,1719971453506,-1447.73,0.00021917,4]
[330950501,1719971453515,-1447.73,0.00021917,4]
[330950502,1719971453525,-1447.73,0.00021917,4]
[330950503,1719971453535,-1447.73,0.00021917,4]
[330950504,1719971453545,-1447.73,0.00021917,4]
[330950505,1719971453554,-1447.73,0.00021917,4]
[330950506,1719971453566,-502.95474938,0.00021917,4]
[330950507,1719971453582,-1447.73,0.00021917,4]
[330950508,1719971453592,-1447.73,0.00021917,4]
[330950509,1719971453602,-501.63458806,0.00021917,4]
[330950510,1719971453611,-1447.73,0.00021917,4]
[330950511,1719971453621,-1447.73,0.00021917,4]
[330950512,1719971453630,-1447.73,0.00021917,4]
[330950513,1719971453639,-1447.73,0.00021917,4]
[330950514,1719971453649,-501.0999156,0.00021917,4]
[330950515,1719971453658,-1447.73,0.00021917,4]
[330950516,1719971453667,-1447.73,0.00021917,4]
[330950517,1719971453677,-1447.73,0.00021917,4]
[330950518,1719971453686,-498.63613656,0.00021917,4]
[330950519,1719971453696,-1447.73,0.00021917,4]
[330950520,1719971453705,-1447.73,0.00021917,4]
[330950521,1719971453715,-1447.73,0.00021917,4]
[330950522,1719971453724,-200.65578385,0.00021917,4]
[330950523,1719971453734,-499.60245543,0.00021917,4]
[330950524,1719971453743,-501.10872391,0.00021917,4]
[330950525,1719971453753,-1447.73,0.00021917,4]
[330950526,1719971453763,-1447.73,0.00021917,4]
[330950527,1719971453772,-1447.73,0.00021917,4]
[330950528,1719971453782,-1447.73,0.00021917,4]
[330950529,1719971453791,-1447.81208444,0.00021917,4]
[330950530,1719971453801,-633.97962822,0.00021917,4]
[330950531,1719971453811,-502.06634788,0.00021917,4]
[330950532,1719971453820,-848.46,0.00021917,4]
[330950533,1719971453830,-501.54799628,0.00021917,4]
[330950534,1719971453839,-848.46,0.00021917,4]
[330950535,1719971453850,-848.46,0.00021917,4]
[330950536,1719971453859,-502.11771219,0.00021917,4]
[330950537,1719971453868,-848.46,0.00021917,4]
[330950538,1719971453877,-501.43854106,0.00021917,4]
[330950539,1719971453887,-848.46,0.00021917,4]
[330950540,1719971453896,-848.46,0.00021917,4]
[330950541,1719971453906,-848.46,0.00021917,4]
[330950542,1719971453915,-848.46,0.00021917,4]
[330950543,1719971453925,-848.46,0.00021917,4]
[330950544,1719971453934,-848.46,0.00021917,4]
[330950545,1719971453944,-848.46,0.00021917,4]
[330950546,1719971453953,-848.46,0.00021917,4]
[330950547,1719971453963,-848.46,0.00021917,4]
[330950548,1719971453973,-848.46,0.00021917,4]
[330950549,1719971453983,-848.46,0.00021917,4]
[330950550,1719971453993,-848.46,0.00021917,4]
[330950551,1719971454002,-848.46,0.00021917,4]
[330950552,1719971454011,-848.46,0.00021917,4]
[330950553,1719971454021,-848.46,0.00021917,4]
[330950554,1719971454032,-848.46,0.00021917,4]
[330950555,1719971454041,-848.46,0.00021917,4]
[330950556,1719971454051,-848.46,0.00021917,4]
[330950557,1719971454060,-848.46,0.00021917,4]
[330950558,1719971454070,-848.56734188,0.00021917,4]
[330950559,1719971454081,-864.72,0.00021917,4]
[330950560,1719971454091,-864.72,0.00021917,4]
[330950561,1719971454102,-864.72,0.00021917,4]
[330950562,1719971454112,-864.72,0.00021917,4]
[330950563,1719971454122,-864.72,0.00021917,4]
[330950564,1719971454132,-864.72,0.00021917,4]
[330950565,1719971454142,-864.72,0.00021917,4]
[330950566,1719971454152,-151.0,0.00021917,2]
[330950567,1719971454161,-864.72,0.00021917,4]
[330950568,1719971454171,-151.0,0.00021917,2]
[330950569,1719971454181,-151.0,0.00021917,2]
[330950570,1719971454191,-151.0,0.00021917,2]
[330950571,1719971454201,-151.0,0.00021917,2]
[330950572,1719971454210,-151.454094,0.00021917,2]
[330950573,1719971454221,-864.72,0.00021917,4]
[330950574,1719971454230,-864.72,0.00021917,4]
[330950575,1719971454240,-864.72,0.00021917,4]
[330950576,1719971454250,-864.72,0.00021917,4]
[330950577,1719971454260,-864.72,0.00021917,4]
[330950578,1719971454271,-864.72,0.00021917,4]
[330950579,1719971454282,-864.72,0.00021917,4]
[330950580,1719971454292,-864.72,0.00021917,4]
[330950581,1719971454302,-864.72,0.00021917,4]
[330950582,1719971454312,-864.72,0.00021917,4]
[330950583,1719971454321,-864.72,0.00021917,4]
[330950584,1719971454331,-864.72,0.00021917,4]
[330950585,1719971454340,-864.72,0.00021917,4]
[330950586,1719971454349,-864.72,0.00021917,4]
[330950587,1719971454359,-864.72,0.00021917,4]
[330950588,1719971454368,-864.79181305,0.00021917,4]
[330950589,1719971454378,-486.98436188,0.00021917,4]
[330950590,1719971454387,-712.6,0.00021917,4]
[330950591,1719971454396,-712.6,0.00021917,4]
[330950592,1719971454405,-712.6,0.00021917,4]
[330950593,1719971454414,-712.6,0.00021917,4]
[330950594,1719971454423,-712.6,0.00021917,4]
[330950595,1719971454433,-712.6,0.00021917,4]
[330950596,1719971454443,-712.6,0.00021917,4]
[330950597,1719971454453,-712.6,0.00021917,4]
[330950598,1719971454463,-712.6,0.00021917,4]
[330950599,1719971454472,-712.6,0.00021917,4]
[330950600,1719971454481,-712.6,0.00021917,4]
[330950601,1719971454492,-712.6,0.00021917,4]
[330950602,1719971454501,-712.6,0.00021917,4]
[330950603,1719971454510,-712.6,0.00021917,4]
[330950604,1719971454519,-151.0,0.00021917,2]
[330950605,1719971454528,-151.0,0.00021917,2]
[330950606,1719971454539,-712.6,0.00021917,4]
[330950607,1719971454548,-151.0,0.00021917,2]
[330950608,1719971454557,-712.6,0.00021917,4]
[330950609,1719971454566,-158.14142,0.00021917,2]
[330950610,1719971454580,-501.70156131,0.00021917,4]
[330950611,1719971454590,-712.6,0.00021917,4]
[330950612,1719971454599,-712.6,0.00021917,4]
[330950613,1719971454609,-712.6,0.00021917,4]
[330950614,1719971454619,-712.6,0.00021917,4]
[330950615,1719971454628,-712.6,0.00021917,4]
[330950616,1719971454637,-712.6,0.00021917,4]
[330950617,1719971454647,-712.6,0.00021917,4]
[330950618,1719971454660,-712.62182216,0.00021917,4]
[330950619,1719971454670,-417.63334644,0.00021917,4]
[330950620,1719971454679,-439.06317347,0.00021917,4]
[330950621,1719971454690,-600.3,0.00021917,4]
[330950622,1719971454699,-600.3,0.00021917,4]
[330950623,1719971454710,-600.3,0.00021917,4]
[330950624,1719971454720,-600.3,0.00021917,4]
[330950625,1719971454730,-600.3,0.00021917,4]
[330950626,1719971454747,-600.3,0.00021917,4]
[330950627,1719971454756,-600.3,0.00021917,4]
[330950628,1719971454767,-600.3,0.00021917,4]
[330950629,1719971454776,-600.3,0.00021917,4]
[330950630,1719971454786,-600.3,0.00021917,4]
[330950631,1719971454795,-600.3,0.00021917,4]
[330950632,1719971454804,-600.3,0.00021917,4]
[330950633,1719971454814,-600.3,0.00021917,4]
[330950634,1719971454823,-164.947848,0.00021917,2]
[330950635,1719971454832,-164.947848,0.00021917,2]
[330950636,1719971454842,-164.947848,0.00021917,2]
[330950637,1719971454851,-151.0,0.00021917,2]
[330950638,1719971454861,-164.947848,0.00021917,2]
[330950639,1719971454870,-151.0,0.00021917,2]
[330950640,1719971454879,-164.947848,0.00021917,2]
[330950641,1719971454889,-600.3,0.00021917,4]
[330950642,1719971454898,-151.0,0.00021917,2]
[330950643,1719971454908,-164.947848,0.00021917,2]
[330950644,1719971454918,-162.102319,0.00021917,2]
[330950645,1719971454927,-164.947848,0.00021917,2]
[330950646,1719971454937,-600.3,0.00021917,4]
[330950647,1719971454946,-164.947848,0.00021917,2]
[330950648,1719971454956,-164.947848,0.00021917,2]
[330950649,1719971454965,-600.3,0.00021917,4]
[330950650,1719971454975,-164.947848,0.00021917,2]
[330950651,1719971454984,-164.947848,0.00021917,2]
[330950652,1719971454994,-164.947848,0.00021917,2]
[330950653,1719971455003,-600.3,0.00021917,4]
[330950654,1719971455013,-164.947848,0.00021917,2]
[330950655,1719971455023,-164.947848,0.00021917,2]
[330950656,1719971455034,-500.0,0.00021917,4]
[330950657,1719971455044,-164.947848,0.00021917,2]
[330950658,1719971455054,-600.3,0.00021917,4]
[330950659,1719971455063,-500.0,0.00021917,4]
[330950660,1719971455073,-164.947848,0.00021917,2]
[330950661,1719971455083,-346.46172587,0.00021917,4]
[330950662,1719971455092,-164.947848,0.00021917,2]
[330950663,1719971455101,-600.3,0.00021917,4]
[330950664,1719971455109,-164.947848,0.00021917,2]
[330950665,1719971455119,-600.3,0.00021917,4]
[330950666,1719971455128,-164.947848,0.00021917,2]
[330950667,1719971455138,-164.94783864,0.00021917,2]
[330950668,1719971455147,-600.3,0.00021917,4]
[330950669,1719971455157,-600.3,0.00021917,4]
[330950670,1719971455167,-600.3,0.00021917,4]
[330950671,1719971455176,-600.48057732,0.00021917,4]
[330950672,1719971455186,-500.0,0.00021917,4]
[330950673,1719971455196,-500.0,0.00021917,4]
[330950674,1719971455206,-502.01013137,0.00021917,4]
[330950675,1719971455215,-500.0,0.00021917,4]
[330950676,1719971455224,-500.0,0.00021917,4]
[330950677,1719971455233,-500.0,0.00021917,4]
[330950678,1719971455243,-500.0,0.00021917,4]
[330950679,1719971455252,-500.0,0.00021917,4]
[330950680,1719971455262,-500.0,0.00021917,4]
[330950681,1719971455270,-207.9528513,0.00021917,4]
[330950682,1719971455281,-500.0,0.00021917,4]
[330950683,1719971455291,-500.0,0.00021917,4]
[330950684,1719971455301,-500.0,0.00021917,4]
[330950685,1719971455312,-500.0,0.00021917,4]
[330950686,1719971455322,-500.0,0.00021917,4]
[330950687,1719971455332,-500.0,0.00021917,4]
[330950688,1719971455342,-500.0,0.00021917,4]
[330950689,1719971455351,-503.74350519,0.00021917,4]
[330950690,1719971455361,-500.0,0.00021917,4]
[330950691,1719971455370,-500.0,0.00021917,4]
[330950692,1719971455382,-500.0,0.00021917,4]
[330950693,1719971455392,-500.0,0.00021917,4]
[330950694,1719971455402,-500.0,0.00021917,4]
[330950695,1719971455411,-500.0,0.00021917,4]
[330950696,1719971455421,-505.40542645,0.00021917,4]
[330950697,1719971455431,-500.0,0.00021917,4]
[330950698,1719971455441,-500.0,0.00021917,4]
[330950699,1719971455451,-500.0,0.00021917,4]
[330950700,1719971455461,-500.0,0.00021917,4]
[330950701,1719971455471,-500.0,0.00021917,4]
[330950702,1719971455480,-500.0,0.00021917,4]
[330950703,1719971455490,-500.0,0.00021917,4]
[330950704,1719971455499,-500.0,0.00021917,4]
[330950705,1719971455508,-445.89754819,0.00021917,4]
[330950706,1719971455517,-500.0,0.00021917,4]
[330950707,1719971455527,-500.0,0.00021917,4]
[330950708,1719971455539,-500.0,0.00021917,4]
[330950709,1719971455548,-500.0,0.00021917,4]
[330950710,1719971455557,-500.0,0.00021917,4]